bitfinex/quotes_SOLUSD_20250802
["timestamp","ask_amount","ask_price","bid_price","bid_amount"]
[1754154911883,21.63198759,162.38,162.37,0.06]
[1754154912081,65.05198759,162.38,162.37,0.06]
[1754154913782,64.55198759,162.38,162.37,0.06]
[1754154914684,70.93971093,162.38,162.36,0.06]
[1754154914881,12.28271414,162.37,162.36,0.06]
[1754154915362,5.8949908,162.37,162.36,0.06]
[1754154915565,66.09967477,162.37,162.36,0.06]
[1754154916507,60.91468397,162.37,162.36,0.06]
[1754154917653,86.91468397,162.37,162.36,0.06]
[1754154918054,92.09967477,162.37,162.36,0.06]
[1754154919003,48.67967477,162.37,162.36,0.06]
[1754154919367,92.09967477,162.37,162.36,0.06]
[1754154920806,48.67967477,162.37,162.36,0.06]
[1754154920981,92.09967477,162.37,162.36,0.06]
[1754154923196,86.91468397,162.37,162.36,0.06]
[1754154924210,42.78468397,162.37,162.36,0.06]
[1754154924383,86.20468397,162.37,162.36,0.06]
[1754154925003,86.18468397,162.37,162.36,0.06]
[1754154925316,86.18468397,162.37,162.36,0.74]
[1754154925515,42.78468397,162.37,162.36,0.74]
[1754154925695,86.18468397,162.37,162.36,0.06]
[1754154925896,46.93351035,162.37,162.36,0.06]
[1754154926094,96.22850115,162.37,162.36,0.06]
[1754154926581,52.82850115,162.37,162.36,0.06]
[1754154926786,102.61622449,162.37,162.36,0.06]
[1754154927106,76.61622449,162.37,162.36,0.06]
[1754154928904,76.64622449,162.37,162.36,0.06]
[1754154930207,76.64622449,162.37,162.34,0.06]
[1754154930208,42.78468397,162.35,162.34,0.06]
[1754154930407,90.33351035,162.35,162.34,0.06]
[1754154930728,91.04351035,162.35,162.34,0.06]
[1754154931813,102.61867528,162.35,162.34,0.06]
[1754154932013,97.43123369,162.35,162.34,0.06]
[1754154932417,97.43123369,162.35,162.31,0.06]
[1754154932618,42.78468397,162.32,162.31,0.06]
[1754154932920,90.33351035,162.32,162.31,0.06]
[1754154933316,46.93351035,162.32,162.31,0.06]
[1754154933517,90.99351035,162.32,162.31,0.06]
[1754154934425,95.87194108,162.32,162.31,0.06]
[1754154939331,108.65845304,162.32,162.31,0.06]
[1754154939497,117.95312788,162.32,162.31,0.06]
[1754154939998,26.78468397,162.31,162.3,0.06]
[1754154940327,26.78468397,162.31,162.29,0.06]
[1754154940328,26.78468397,162.3,162.29,0.06]
[1754154940489,81.38676633,162.3,162.29,0.06]
[1754154940689,81.38676633,162.3,162.27,0.06]
[1754154940690,26.78468397,162.28,162.27,0.06]
[1754154941042,36.0,162.26,162.21,0.06]
[1754154941198,87.12002231,162.26,162.21,0.06]
[1754154941391,81.38676633,162.26,162.21,0.06]
[1754154942422,86.5523468,162.26,162.21,0.06]
[1754154942610,89.0252228,162.26,162.21,0.06]
[1754154942798,90.25289831,162.26,162.21,0.06]
[1754154943122,16.78468397,162.23,162.21,0.06]
[1754154943321,80.74676633,162.23,162.21,0.06]
[1754154943625,81.40676633,162.23,162.21,0.06]
[1754154944002,89.79785564,162.23,162.21,0.06]
[1754154944204,26.0,162.15,162.12,6.39325598]
[1754154944414,43.42,162.14,162.12,6.39325598]
[1754154944633,43.42,162.14,162.11,6.39325598]
[1754154944634,48.34104086,162.14,162.11,6.39325598]
[1754154944840,43.42,162.14,162.11,6.39325598]
[1754154945334,43.42,162.14,162.02,19.90829991]
[1754154945335,43.42,162.14,162.02,16.78468397]
[1754154945510,43.42,162.14,162.0,50.41053993]
[1754154945511,23.17793995,162.13,162.0,6.39325598]
[1754154945711,16.78468397,162.11,162.07,6.39325598]
[1754154945918,43.42,162.1,162.07,6.39325598]
[1754154946115,17.44468397,162.11,162.07,6.39325598]
[1754154946116,26.66,162.11,162.07,6.39325598]
[1754154946314,43.42,162.1,162.09,6.39325598]
[1754154946721,43.42,162.1,162.09,7.10325598]
[1754154947421,16.78468397,162.13,162.09,7.10325598]
[1754154947734,43.42,162.12,162.1,0.71]
[1754154949727,26.0,162.11,162.02,26.0]
[1754154949920,16.78468397,162.14,162.1,6.39325598]
[1754154950106,43.44,162.13,162.12,6.39325598]
[1754154950441,43.44,162.13,162.12,7.10325598]
[1754154951346,43.44,162.13,162.12,0.71]
[1754154951645,43.44,162.13,162.08,6.39325598]
[1754154951646,43.44,162.13,162.1,0.71]
[1754154951839,43.44,162.13,162.12,6.39325598]
[1754154952814,43.44,162.13,162.08,6.39325598]
[1754154953014,43.44,162.13,162.12,6.39325598]
[1754154953216,43.44,162.13,162.12,7.10325598]
[1754154953416,43.44,162.13,162.12,6.39325598]
[1754154955246,43.44,162.13,162.1,0.71]
[1754154955415,43.44,162.13,162.12,6.39325598]
[1754154956938,16.78468397,162.12,162.1,6.39325598]
[1754154957142,16.78468397,162.12,162.09,6.39325598]
[1754154957143,44.1,162.11,162.09,6.39325598]
[1754154957909,43.44,162.11,162.1,6.39325598]
[1754154959048,43.44,162.11,162.08,0.71]
[1754154959337,43.44,162.11,162.06,0.71]
[1754154959338,0.66,162.1,162.06,0.71]
[1754154959640,17.44468397,162.12,162.09,6.39325598]
[1754154959938,44.1,162.11,162.09,6.39325598]
[1754154960142,0.66,162.1,162.08,6.39325598]
[1754154960443,16.78468397,162.12,162.09,6.39325598]
[1754154960750,43.44,162.11,162.09,6.39325598]
[1754154960916,44.13,162.11,162.09,6.39325598]
[1754154961315,44.13,162.11,162.0,7.01053993]
[1754154961316,16.78468397,162.1,162.0,7.01053993]
[1754154961622,44.13,162.09,162.07,6.39325598]
[1754154961828,43.44,162.09,162.06,6.39325598]
[1754154962026,0.69,162.08,162.04,6.39325598]
[1754154962223,66.61793995,162.07,162.0,0.67]
[1754154962557,16.78468397,162.05,162.01,6.39325598]
[1754154962853,44.13,162.04,162.01,6.39325598]
[1754154963023,43.44,162.04,161.98,0.73]
[1754154963223,17.47468397,162.03,162.0,6.39325598]
[1754154963525,17.47468397,162.03,161.98,0.73]
[1754154963526,44.13,162.02,161.99,6.39325598]
[1754154963914,44.13,162.02,161.98,6.45325598]
[1754154964253,16.78468397,162.0,161.98,6.45325598]
[1754154964417,43.46,161.99,161.98,6.45325598]
[1754154965112,43.46,161.99,161.98,0.06]
[1754154965326,43.46,161.99,161.98,6.45325598]
[1754154965531,60.93468397,161.99,161.98,0.06]
[1754154968750,60.24468397,161.99,161.98,0.06]
[1754154969849,60.93468397,161.99,161.98,0.06]
[1754154970432,86.93468397,161.99,161.98,0.06]
[1754154971162,91.94477444,161.99,161.98,0.06]
[1754154971550,48.48477444,161.99,161.98,0.06]
[1754154971753,91.94477444,161.99,161.98,0.06]
[1754154971952,86.93468397,161.99,161.98,0.06]
[1754154972655,86.24468397,161.99,161.98,0.06]
[1754154972866,86.24468397,161.99,161.98,6.45325598]
[1754154973288,69.46,161.99,161.98,6.45325598]
[1754154973452,43.46,161.99,161.98,0.06]
[1754154973654,69.46,161.99,161.98,0.06]
[1754154973857,69.46,161.99,161.98,6.45325598]
[1754154974854,86.93468397,161.99,161.98,0.06]
[1754154975193,86.24468397,161.99,161.98,0.06]
[1754154976274,86.24468397,161.99,161.98,6.45325598]
[1754154976609,16.78468397,162.04,161.98,7.12325598]
[1754154976890,0.69,162.06,162.03,6.39325598]
[1754154976891,16.78468397,162.06,162.03,6.39325598]
[1754154977194,26.0,162.02,161.99,0.67]
[1754154977351,43.48,162.01,161.99,0.67]
[1754154977990,43.48,162.01,161.98,0.06]
[1754154978286,43.48,162.01,161.99,0.67]
[1754154978584,43.48,162.01,162.0,6.39325598]
[1754154978958,43.48,162.01,162.0,13.45651196]
[1754154979481,43.48,162.01,162.0,7.06325598]
[1754154980488,43.48,162.01,162.0,6.39325598]
[1754154980791,43.48,162.01,162.0,13.45651196]
[1754154982264,26.0,162.05,162.0,13.45651196]
[1754154982467,26.0,162.05,162.04,6.39325598]
[1754154982794,69.48,162.05,162.04,7.06325598]
[1754154982959,69.48,162.05,162.02,0.67]
[1754154983167,69.48,162.05,162.04,6.39325598]
[1754154983990,69.48,162.05,162.04,7.06325598]
[1754154984289,69.48,162.05,162.04,6.39325598]
[1754154985086,43.48,162.05,162.04,6.39325598]
[1754154985668,773.54348804,162.0,161.98,0.06]
[1754154985869,690.60044384,162.0,161.99,12.78651196]
[1754154987767,607.65739964,162.0,161.99,12.92651196]
[1754154988565,524.71435544,162.0,161.99,12.92651196]
[1754154989585,441.77131124,162.0,161.99,12.92651196]
[1754154991478,358.82826704,162.0,161.99,12.92651196]
[1754154991669,358.82826704,162.0,161.99,12.78651196]
[1754154991875,358.82826704,162.0,161.99,6.39325598]
[1754154992077,358.82826704,162.0,161.99,12.78651196]
[1754154993383,358.82826704,162.0,161.91,89.1]
[1754154993384,10.0,161.98,161.91,89.1]
[1754154993584,10.0,161.98,161.93,12.786511]
[1754154993795,10.0,161.98,161.94,0.61751265]
[1754154994297,43.46,162.0,161.94,0.61751265]
[1754154994499,0.61747452,162.07,161.94,0.61751265]
[1754154994500,43.46,162.02,162.0,6.39325598]
[1754154994706,43.46,162.03,162.01,6.39325598]
[1754154994878,43.46,162.03,162.0,6.39325598]
[1754154994879,43.46,162.03,162.02,6.39325598]
[1754154995198,44.14,162.03,162.02,6.39325598]
[1754154996675,16.78468397,162.02,161.93,26.0]
[1754154996878,16.78468397,162.02,161.86,9.42511978]
[1754154996879,44.75747452,162.01,161.98,6.39325598]
[1754154997079,0.68,162.0,161.98,6.39325598]
[1754154997388,43.46,161.99,161.92,7.01084491]
[1754154997579,44.14,161.99,161.92,7.01084491]
[1754154998482,44.14,161.99,161.98,6.39325598]
[1754154998882,0.61747452,162.01,161.98,6.39325598]
[1754154999085,0.68,162.01,162.0,6.39325598]
[1754154999295,44.14,162.01,162.0,6.39325598]
[1754155000009,44.14,162.01,161.92,33.01084491]
[1754155000211,44.14,162.01,162.0,6.39325598]
[1754155003002,43.46,162.01,162.0,6.39325598]
[1754155003530,44.14,162.03,162.0,6.39325598]
[1754155003830,70.14,162.03,162.02,6.39325598]
[1754155004040,43.46,162.03,162.02,6.39325598]
[1754155004246,43.46,162.05,162.02,6.39325598]
[1754155004395,43.46,162.05,162.04,6.39325598]
[1754155005029,44.14,162.05,162.04,6.39325598]
[1754155005405,43.46,162.05,162.04,6.39325598]
[1754155005628,44.14,162.05,162.04,6.39325598]
[1754155005997,26.0,162.04,161.96,0.6174364]
[1754155006216,26.0,162.03,162.02,6.39325598]
[1754155006519,26.68,162.03,162.02,6.39325598]
[1754155008723,26.0,162.07,162.02,6.39325598]
[1754155008929,0.03,162.09,162.06,12.78651196]
[1754155009227,0.03,162.09,162.08,12.78651196]
[1754155010243,44.23,162.15,162.14,6.39325598]
[1754155010537,44.23,162.15,162.03,16.78468397]
[1754155010538,42.78468397,162.14,162.1,6.39325598]
[1754155010698,42.78468397,162.14,162.0,6.39325598]
[1754155010699,26.0,162.11,162.07,6.39325598]
[1754155010905,44.15747452,162.1,162.07,6.39325598]
[1754155011153,0.68,162.09,162.07,6.39325598]
[1754155011737,43.54,162.1,162.08,6.39325598]
[1754155011920,43.54,162.1,162.09,6.39325598]
[1754155012497,44.22,162.1,162.09,6.39325598]
[1754155013693,0.68,162.13,162.09,6.39325598]
[1754155013933,0.61747452,162.17,162.08,6.39325598]
[1754155013934,16.78468397,162.14,162.12,6.39325598]
[1754155014234,43.56,162.13,162.12,6.39325598]
[1754155014731,44.85747452,162.13,162.12,6.39325598]
[1754155015231,44.24,162.13,162.12,6.39325598]
[1754155015607,44.24,162.13,162.08,6.39325598]
[1754155015824,0.68,162.12,162.11,6.39325598]
[1754155017235,0.68,162.12,162.09,6.39325598]
[1754155017416,0.61747452,162.11,162.09,6.39325598]
[1754155017616,43.54,162.1,162.09,6.39325598]
[1754155017818,44.22,162.1,162.09,6.39325598]
[1754155021237,43.54,162.1,162.09,6.39325598]
[1754155021673,1.31747452,162.13,162.09,6.39325598]
[1754155021823,43.54,162.12,162.08,6.39325598]
[1754155022146,43.54,162.12,162.11,6.39325598]
[1754155022706,44.21,162.12,162.11,6.39325598]
[1754155023133,43.54,162.12,162.11,6.39325598]
[1754155024150,70.21,162.12,162.11,6.39325598]
[1754155024434,69.54,162.12,162.11,6.39325598]
[1754155024742,70.21,162.12,162.11,6.39325598]
[1754155028266,26.67,162.12,162.11,6.39325598]
[1754155028729,26.67,162.12,162.08,6.39325598]
[1754155028927,26.0,162.12,162.11,6.39325598]
[1754155029430,26.67,162.12,162.11,6.39325598]
[1754155030048,26.0,162.12,162.11,6.39325598]
[1754155030358,26.67,162.12,162.11,6.39325598]
[1754155030832,26.67,162.12,162.08,6.39325598]
[1754155031166,26.67,162.12,162.11,6.39325598]
[1754155033489,27.28747452,162.12,162.04,89.1]
[1754155033648,26.61747452,162.12,162.11,6.39325598]
[1754155033845,70.05747452,162.12,162.11,6.39325598]
[1754155034056,70.05747452,162.12,162.1,6.39325598]
[1754155034260,0.67,162.11,162.1,6.39325598]
[1754155034852,69.44,162.12,162.1,6.39325598]
[1754155035053,0.67,162.11,162.03,0.61716965]
[1754155035384,0.1,162.18,162.13,42.78468397]
[1754155035592,0.1,162.26,162.17,32.39325598]
[1754155035878,0.1,162.26,162.16,6.39325598]
[1754155035879,0.1,162.26,162.25,6.39325598]
[1754155036553,0.77,162.26,162.25,6.39325598]
[1754155036974,0.1,162.26,162.25,6.39325598]
[1754155037386,0.77,162.26,162.25,6.39325598]
[1754155038057,1.38747452,162.26,162.25,6.39325598]
[1754155038278,0.77,162.26,162.25,6.39325598]
[1754155038858,0.1,162.26,162.25,6.39325598]
[1754155039358,0.1,162.26,162.25,7.00958879]
[1754155041795,0.1,162.28,162.27,6.39325598]
[1754155043198,0.77,162.28,162.27,6.39325598]
[1754155043777,0.77,162.28,162.24,6.39325598]
[1754155043978,0.67,162.27,162.24,6.39325598]
[1754155044313,0.1,162.28,162.26,6.39325598]
[1754155044477,0.71747452,162.28,162.26,6.39325598]
[1754155044666,0.71747452,162.28,162.19,44.531674]
[1754155045004,0.71747452,162.28,162.25,6.39325598]
[1754155045005,0.67,162.27,162.25,6.39325598]
[1754155045500,0.61747452,162.26,162.25,6.39325598]
[1754155045807,0.67,162.26,162.25,6.39325598]
[1754155045976,1.38747452,162.28,162.25,6.39325598]
[1754155046295,0.67,162.27,162.26,6.39325598]
[1754155048171,0.67,162.27,162.18,45.15170684]
[1754155048394,0.67,162.27,162.26,6.39325598]
[1754155049568,0.71747452,162.28,162.26,6.39325598]
[1754155049768,1.38747452,162.28,162.27,6.39325598]
[1754155049998,1.38747452,162.28,162.26,6.39325598]
[1754155050983,0.71,162.27,162.19,18.533963]
[1754155051183,0.1,162.28,162.26,6.39325598]
[1754155051380,0.1,162.28,162.27,6.39325598]
[1754155051596,0.81,162.28,162.27,6.39325598]
[1754155052271,0.1,162.28,162.27,6.39325598]
[1754155053897,0.81,162.28,162.27,6.39325598]
[1754155054913,1.42747452,162.28,162.26,6.39325598]
[1754155055409,0.71,162.27,162.26,6.39325598]
[1754155055788,0.71,162.27,162.25,6.39325598]
[1754155055995,43.64,162.26,162.25,6.39325598]
[1754155056291,43.64,162.26,162.24,6.39325598]
[1754155056483,0.71,162.25,162.24,6.39325598]
[1754155057408,1.32747452,162.25,162.18,115.1]
[1754155057613,1.32747452,162.25,162.22,6.39325598]
[1754155057811,0.71,162.24,162.22,6.39325598]
[1754155058109,0.71,162.23,162.22,6.39325598]
[1754155058315,44.33,162.23,162.22,6.39325598]
[1754155060082,43.62,162.23,162.22,6.39325598]
[1754155060901,44.33,162.23,162.22,6.39325598]
[1754155061098,44.31,162.23,162.22,6.39325598]
[1754155062977,0.71,162.23,162.22,6.39325598]
[1754155063183,44.29,162.23,162.22,6.39325598]
[1754155063817,43.58,162.23,162.22,6.39325598]
[1754155064511,26.71,162.25,162.22,6.39325598]
[1754155064719,43.58,162.24,162.22,6.39325598]
[1754155065018,43.58,162.24,162.23,6.39325598]
[1754155065511,43.58,162.26,162.23,6.39325598]
[1754155065706,0.1,162.28,162.25,6.39325598]
[1754155066017,43.58,162.27,162.19,26.61656082]
[1754155066512,43.58,162.27,162.19,115.71656082]
[1754155067120,43.58,162.27,162.26,6.39325598]
[1754155067302,0.81,162.28,162.26,6.39325598]
[1754155067683,0.1,162.28,162.27,6.39325598]
[1754155070800,0.1,162.28,162.27,7.00951283]
[1754155071796,0.1,162.3,162.27,7.00951283]
[1754155072009,0.1,162.3,162.29,6.39325598]
[1754155075922,0.81,162.3,162.29,6.39325598]
[1754155076129,0.1,162.3,162.29,6.39325598]
[1754155084703,0.1,162.3,162.28,108.23988288]
[1754155084907,0.1,162.3,162.29,6.39325598]
[1754155085218,0.1,162.3,162.28,108.23988288]
[1754155085415,0.1,162.3,162.29,6.39325598]
[1754155086424,0.1,162.3,162.28,19.13988288]
[1754155086425,0.82,162.3,162.25,175.34468397]
[1754155086632,0.1,162.3,162.29,6.39325598]
[1754155087236,0.82,162.3,162.29,6.39325598]
[1754155087631,0.1,162.3,162.29,6.39325598]
[1754155088260,0.82,162.3,162.29,6.39325598]
[1754155094151,1.43747452,162.3,162.29,6.39325598]
[1754155095955,1.43747452,162.3,162.28,6.39325598]
[1754155096153,0.1,162.3,162.29,6.39325598]
[1754155102061,0.82,162.3,162.29,6.39325598]
[1754155102796,0.1,162.3,162.29,6.39325598]
[1754155104993,0.82,162.3,162.29,6.39325598]
[1754155106059,0.1,162.3,162.29,6.39325598]
[1754155111191,0.1,162.3,162.29,8.86307798]
[1754155113808,0.03,162.32,162.29,41.25633396]
[1754155113980,0.03,162.32,162.31,12.78651196]
[1754155114382,0.03,162.37,162.35,6.39325598]
[1754155114591,0.74,162.37,162.35,6.39325598]
[1754155115181,0.74,162.37,162.36,6.39325598]
[1754155121115,0.74,162.37,162.33,19.13511907]
[1754155121411,0.03,162.37,162.36,6.39325598]
[1754155121781,0.74,162.37,162.36,6.39325598]
[1754155122195,0.03,162.37,162.36,6.39325598]
[1754155125028,0.74,162.37,162.35,18.516804]
[1754155125195,0.74,162.37,162.36,6.39325598]
[1754155128601,0.03,162.37,162.36,6.39325598]
[1754155128800,0.03,162.37,162.32,94.33348898]
[1754155128801,0.03,162.37,162.33,0.61602907]
[1754155129006,0.74,162.37,162.36,6.39325598]
[1754155131228,0.03,162.37,162.36,6.39325598]
[1754155132435,0.74,162.37,162.36,6.39325598]
[1754155137808,0.74,162.37,162.35,6.39325598]
[1754155138037,0.74,162.37,162.34,6.39325598]
[1754155139163,43.99747452,162.36,162.34,6.39325598]
[1754155139320,0.71,162.35,162.34,6.39325598]
[1754155139521,0.71,162.35,162.33,6.39325598]
[1754155140454,44.09,162.35,162.33,6.39325598]
[1754155140655,0.71,162.34,162.33,6.39325598]
[1754155141338,0.72,162.36,162.33,6.39325598]
[1754155141529,0.72,162.35,162.34,6.39325598]
[1754155142131,0.03,162.37,162.34,6.39325598]
[1754155142337,0.03,162.37,162.36,6.39325598]
[1754155144034,0.75,162.37,162.36,6.39325598]
[1754155144637,0.03,162.37,162.36,6.39325598]
[1754155145368,0.75,162.37,162.36,6.39325598]
[1754155145666,0.03,162.37,162.36,6.39325598]
[1754155151767,0.75,162.37,162.36,6.39325598]
[1754155151967,0.03,162.37,162.36,6.39325598]
[1754155167794,0.03,162.37,162.36,7.00917123]
[1754155174680,0.72,162.37,162.36,7.00917123]
[1754155176136,0.72,162.37,162.36,6.39325598]
[1754155177017,0.72,162.37,162.36,4.0866391]
[1754155178818,0.72,162.37,162.36,6.38505067]
[1754155182522,0.03,162.37,162.36,6.38505067]
[1754155183593,0.03,162.37,162.36,49.72505067]
[1754155187814,0.03,162.37,162.36,50.34096592]
[1754155188623,0.03,162.37,162.36,139.44096592]
[1754155188791,0.03,162.37,162.36,138.82505067]
[1754155189193,0.03,162.37,162.36,95.48505067]
[1754155189393,0.72,162.37,162.36,138.82505067]
[1754155192304,0.72,162.37,162.36,49.72505067]
[1754155193034,0.03,162.37,162.36,49.72505067]
[1754155196601,0.03,162.37,162.36,75.72505067]
[1754155197729,0.03,162.39,162.36,92.50973464]
[1754155197898,0.03,162.39,162.38,6.38505067]
[1754155198098,0.03,162.39,162.38,49.72505067]
[1754155198310,0.03,162.39,162.38,138.82505067]
[1754155198540,0.03,162.39,162.38,144.32451167]
[1754155198932,0.03,162.39,162.38,142.02344689]
[1754155200439,0.72,162.39,162.38,142.02344689]
[1754155201012,0.03,162.39,162.38,142.02344689]
[1754155201520,0.03,162.39,162.38,52.92344689]
[1754155201721,0.03,162.39,162.38,53.53928627]
[1754155202422,0.73,162.39,162.38,53.53928627]
[1754155202839,0.03,162.39,162.38,53.53928627]
[1754155203043,0.73,162.39,162.38,53.53928627]
[1754155205312,0.73,162.39,162.38,52.92344689]
[1754155206518,0.03,162.39,162.38,69.25939045]
[1754155206743,0.03,162.39,162.38,52.92344689]
[1754155210554,0.03,162.39,162.38,53.53928627]
[1754155210555,0.73,162.39,162.38,53.53928627]
[1754155210846,0.73,162.39,162.38,49.45530038]
[1754155211041,0.03,162.39,162.38,53.53928627]
[1754155214064,4.80946076,162.4,162.39,20.41992945]
[1754155214226,4.80946076,162.4,162.39,4.08398589]
[1754155215156,5.50946076,162.4,162.39,4.08398589]
[1754155215457,5.50946076,162.4,162.39,20.41992945]
[1754155216028,5.50946076,162.4,162.39,4.08398589]
[1754155217744,5.50946076,162.4,162.39,47.40398589]
[1754155218448,4.80946076,162.4,162.39,63.73992945]
[1754155218824,5.50946076,162.4,162.39,47.40398589]
[1754155219058,5.50946076,162.4,162.39,136.50398589]
[1754155219653,4.80946076,162.4,162.39,136.50398589]
[1754155220160,5.50946076,162.4,162.39,136.50398589]
[1754155224838,5.50946076,162.4,162.39,47.40398589]
[1754155227338,5.50946076,162.4,162.39,4.08398589]
[1754155227571,5.50946076,162.4,162.39,3.36398589]
[1754155227853,5.50946076,162.4,162.39,4.08398589]
[1754155228462,5.50946076,162.4,162.37,0.06]
[1754155228653,5.50946076,162.4,162.39,4.08398589]
[1754155228654,4.80946076,162.4,162.39,4.08398589]
[1754155229266,5.50946076,162.4,162.39,4.08398589]
[1754155229675,4.80946076,162.4,162.39,4.08398589]
[1754155230046,4.80946076,162.4,162.39,64.33573091]
[1754155230679,4.80946076,162.4,162.39,47.99978735]
[1754155231051,5.52946076,162.4,162.39,4.08398589]
[1754155239098,4.80946076,162.4,162.39,4.08398589]
[1754155239780,4.80946076,162.4,162.39,4.79398589]
[1754155239978,4.80946076,162.4,162.39,4.08398589]
[1754155245081,4.80946076,162.4,162.39,20.41992945]
[1754155250305,4.80946076,162.4,162.39,4.08398589]
[1754155253278,5.52946076,162.4,162.39,4.08398589]
[1754155253502,4.80946076,162.4,162.39,4.08398589]
[1754155253814,4.80946076,162.4,162.39,20.41992945]
[1754155255083,4.80946076,162.4,162.39,21.74573091]
[1754155255512,4.80946076,162.4,162.39,21.03573091]
[1754155257229,4.80946076,162.4,162.39,21.74573091]
[1754155257385,0.03,162.42,162.39,21.74573091]
[1754155257586,0.03,162.42,162.41,4.08398589]
[1754155258221,0.75,162.42,162.41,4.08398589]
[1754155264819,0.75,162.42,162.4,43.28]
[1754155265135,0.75,162.42,162.41,4.08398589]
[1754155275531,0.75,162.42,162.39,4.08398589]
[1754155275852,4.90702901,162.42,162.4,4.08398589]
[1754155276058,0.03,162.42,162.41,4.08398589]
[1754155276261,0.03,162.42,162.4,4.08398589]
[1754155276456,4.18702901,162.42,162.38,0.06]
[1754155276628,1.31747452,162.41,162.4,4.08398589]
[1754155277133,1.31747452,162.41,162.39,4.08398589]
[1754155277335,0.7,162.4,162.39,4.08398589]
[1754155277927,1.31747452,162.4,162.39,4.08398589]
[1754155278566,0.7,162.4,162.39,4.08398589]
[1754155278769,1.31747452,162.4,162.39,4.08398589]
[1754155278933,0.7,162.4,162.39,4.08398589]
[1754155279264,1.31747452,162.4,162.39,4.08398589]
[1754155279465,0.7,162.4,162.39,4.08398589]
[1754155279634,1.31747452,162.4,162.39,4.08398589]
[1754155279838,0.7,162.4,162.39,4.08398589]
[1754155280137,1.31747452,162.4,162.39,4.08398589]
[1754155280330,0.7,162.4,162.38,0.06]
[1754155280532,0.61747452,162.4,162.39,4.08398589]
[1754155281059,1.31747452,162.4,162.39,4.08398589]
[1754155281563,0.7,162.4,162.39,4.08398589]
[1754155283429,0.03,162.42,162.39,4.77398589]
[1754155283739,0.03,162.42,162.41,4.08398589]
[1754155285750,0.73,162.42,162.41,4.08398589]
[1754155287768,0.03,162.42,162.41,4.08398589]
[1754155288063,0.73,162.42,162.41,4.08398589]
[1754155292274,0.03,162.42,162.41,4.08398589]
[1754155294057,0.03,162.42,162.41,4.76398589]
[1754155295373,0.03,162.42,162.41,4.08398589]
[1754155296277,0.73,162.42,162.41,4.08398589]
[1754155297156,0.03,162.42,162.41,4.08398589]
[1754155297785,0.03,162.42,162.41,4.76398589]
[1754155298252,0.03,162.42,162.41,4.08398589]
[1754155306784,0.73,162.42,162.41,4.08398589]
[1754155306975,0.03,162.42,162.41,4.08398589]
[1754155307180,0.03,162.42,162.41,4.76398589]
[1754155307485,0.03,162.42,162.41,4.08398589]
[1754155318290,0.03,162.42,162.41,4.76398589]
[1754155318907,0.03,162.42,162.41,4.08398589]
[1754155323104,0.03,162.42,162.4,16.33594356]
[1754155323286,0.03,162.42,162.41,4.08398589]
[1754155325429,0.73,162.42,162.41,4.08398589]
[1754155326292,0.03,162.42,162.41,4.08398589]
[1754155328219,0.73,162.42,162.41,4.08398589]
[1754155328621,0.03,162.42,162.41,4.08398589]
[1754155329118,4.18904996,162.42,162.41,4.08398589]
[1754155329324,0.73,162.42,162.41,4.08398589]
[1754155330326,0.03,162.42,162.4,16.33594356]
[1754155330529,4.88960877,162.42,162.41,4.08398589]
[1754155334838,4.18960877,162.42,162.41,4.08398589]
[1754155335623,4.88960877,162.42,162.41,4.08398589]
[1754155338213,4.88960877,162.42,162.38,0.06]
[1754155338522,5.47708329,162.41,162.4,4.08398589]
[1754155340637,5.47708329,162.41,162.38,0.06]
[1754155340815,0.61747452,162.41,162.4,4.08398589]
[1754155341043,4.15827276,162.41,162.4,4.08398589]
[1754155341242,4.77574728,162.41,162.4,4.08398589]
[1754155341434,5.47574728,162.41,162.4,4.08398589]
[1754155341635,5.47574728,162.41,162.38,0.06]